bitfinex/quotes_ETHUSD_20241003
["timestamp","ask_amount","ask_price","bid_price","bid_amount"]
[1727973720575,4.2983,2326.5,2326.4,2.24165593]
[1727973720774,4.29852,2326.4,2326.3,2.68998712]
[1727973721007,5.10482,2326.4,2326.3,2.68998712]
[1727973721206,5.10482,2326.4,2326.2,2.68998712]
[1727973721425,3.0,2326.6,2326.3,0.55]
[1727973721426,7.29823,2326.6,2326.3,0.55]
[1727973721583,7.29823,2326.6,2326.5,2.24392359]
[1727973722283,4.29843,2326.5,2326.3,2.69267105]
[1727973722810,4.29843,2326.5,2326.4,2.69267105]
[1727973723035,7.29823,2326.6,2326.4,0.55]
[1727973723212,5.09765,2327.0,2326.5,0.55]
[1727973723373,4.29722,2327.1,2327.0,0.55]
[1727973723575,0.8001,2327.3,2327.0,1.44770625]
[1727973723855,4.29708,2327.2,2327.1,0.89773515]
[1727973723977,4.29708,2327.2,2327.1,1.34661887]
[1727973724317,9.39388,2327.3,2327.1,1.34661887]
[1727973724491,5.09697,2327.3,2327.2,1.89661887]
[1727973724684,5.09697,2327.3,2327.2,1.4480079]
[1727973724888,8.09697,2327.3,2327.2,1.4480079]
[1727973725077,4.29639,2327.6,2327.3,0.55]
[1727973725277,4.29639,2327.6,2327.3,1.44805656]
[1727973725610,4.29647,2327.5,2327.3,1.44805656]
[1727973725791,4.29664,2327.4,2327.3,0.89805656]
[1727973726126,5.06652,2327.3,2327.2,0.89805656]
[1727973729942,7.29922,2326.0,2325.9,1.34661887]
[1727973730236,7.29922,2326.0,2325.9,0.89865043]
[1727973730905,7.29922,2326.0,2325.8,1.34661887]
[1727973730906,8.07001,2325.9,2325.8,0.89865043]
[1727973731109,8.07001,2325.9,2325.6,1.34661887]
[1727973731110,4.29978,2325.7,2325.6,0.89865043]
[1727973731350,7.29978,2325.7,2325.6,1.34661887]
[1727973731621,4.29934,2326.0,2325.6,2.33426143]
[1727973731794,4.29905,2326.1,2325.8,1.34646179]
[1727973731999,4.29862,2326.4,2326.0,5.64563179]
[1727973732254,4.29794,2326.7,2326.2,5.74628616]
[1727973732418,4.29794,2326.7,2326.4,0.89755616]
[1727973732796,4.29804,2326.7,2326.5,0.55]
[1727973733001,4.2977,2326.9,2326.5,0.55]
[1727973733511,4.29749,2327.0,2326.5,0.55]
[1727973733705,3.0,2326.9,2326.5,5.94153885]
[1727973733911,7.29766,2326.9,2326.5,2.54081501]
[1727973734110,0.7889,2327.1,2326.7,4.29791]
[1727973734320,0.7889,2327.1,2326.8,0.55]
[1727973734321,4.29733,2327.1,2326.8,0.55]
[1727973734599,5.11188,2327.4,2326.6,0.55]
[1727973734600,4.29756,2326.9,2326.6,0.55]
[1727973735126,4.29821,2326.6,2326.3,0.89755616]
[1727973735351,4.29848,2326.4,2326.3,0.89755616]
[1727973735633,7.29885,2326.2,2326.0,0.89755616]
[1727973735847,4.29904,2326.1,2325.7,5.99521616]
[1727973736053,4.29904,2326.1,2325.7,1.69545616]
[1727973736212,4.29908,2326.1,2325.7,0.7979]
[1727973736398,7.29885,2326.2,2325.6,0.89755616]
[1727973736399,4.29943,2325.9,2325.6,0.89755616]
[1727973736843,4.29961,2325.8,2325.6,0.89755616]
[1727973737343,4.29996,2325.6,2325.5,0.89755616]
[1727973737552,4.30033,2325.4,2325.2,0.89755616]
[1727973737841,5.05206,2325.6,2325.0,0.89755616]
[1727973737842,4.30052,2325.3,2325.0,0.89755616]
[1727973738046,4.30052,2325.3,2324.9,5.19877616]
[1727973738216,4.30062,2325.3,2324.9,2.28954439]
[1727973738413,4.30035,2325.4,2324.9,1.39198823]
[1727973738618,4.30035,2325.4,2324.7,1.72715616]
[1727973738814,4.30144,2324.8,2324.7,0.89755616]
[1727973739046,4.30144,2324.8,2324.6,0.89755616]
[1727973739253,4.30144,2324.8,2324.7,1.34646179]
[1727973739547,4.302,2324.5,2324.4,0.89672095]
[1727973739749,7.30218,2324.4,2324.2,0.89672095]
[1727973739909,7.30218,2324.4,2324.3,0.89672095]
[1727973740315,7.30237,2324.3,2324.2,0.89604945]
[1727973740608,4.30274,2324.1,2324.0,0.89604945]
[1727973740806,4.30274,2324.1,2323.9,0.89604945]
[1727973741121,3.0,2324.2,2323.9,1.12030057]
[1727973741455,5.1035,2324.7,2323.9,1.12030057]
[1727973741456,3.0,2324.5,2324.1,0.89604945]
[1727973741651,4.3023,2324.4,2324.2,0.55]
[1727973741945,4.30237,2324.3,2324.2,1.89646179]
[1727973742155,4.30237,2324.3,2324.2,0.89446487]
[1727973742310,4.3023,2324.4,2324.1,0.89446487]
[1727973742515,4.30255,2324.2,2324.1,0.89446487]
[1727973742711,4.30255,2324.2,2323.9,1.34646179]
[1727973742712,4.30274,2324.1,2324.0,1.34646179]
[1727973742919,4.30274,2324.1,2323.9,1.79549183]
[1727973742920,4.30292,2324.0,2323.9,1.79549183]
[1727973743235,4.30292,2324.0,2323.9,1.34087424]
[1727973743411,5.06054,2324.1,2323.9,1.34087424]
[1727973743760,8.06054,2324.1,2324.0,0.89348575]
[1727973744265,8.06054,2324.1,2323.9,1.34087424]
[1727973744266,7.30292,2324.0,2323.9,0.89348575]
[1727973744613,7.30292,2324.0,2323.6,0.89348575]
[1727973744614,3.0,2323.8,2323.6,0.89348575]
[1727973744839,3.0,2323.6,2323.5,0.89348575]
[1727973745108,3.0,2323.7,2323.5,0.89348575]
[1727973745311,0.7578,2324.1,2323.6,1.34087424]
[1727973745565,3.0,2324.1,2323.8,0.89309552]
[1727973745711,4.30292,2324.0,2323.9,0.89309552]
[1727973745914,4.30292,2324.0,2323.8,0.89309552]
[1727973745915,4.30311,2323.9,2323.8,0.89309552]
[1727973746107,4.30311,2323.9,2323.7,1.34087424]
[1727973746108,4.30329,2323.8,2323.7,0.89309552]
[1727973746388,4.30329,2323.8,2323.6,0.89309552]
[1727973746389,3.0,2323.7,2323.6,0.89309552]
[1727973746756,3.0,2323.7,2323.5,1.79549183]
[1727973746960,4.30302,2324.0,2323.6,1.79549183]
[1727973747259,4.30302,2324.0,2323.5,6.54744439]
[1727973747260,7.30276,2324.1,2323.8,1.79549183]
[1727973747417,4.30311,2323.9,2323.8,1.79549183]
[1727973747613,4.30348,2323.7,2323.5,0.89185301]
[1727973748151,4.30348,2323.7,2323.6,0.89185301]
[1727973748530,4.30348,2323.7,2323.5,1.33777952]
[1727973748531,4.30366,2323.6,2323.4,0.89185301]
[1727973748718,4.30348,2323.7,2323.3,1.33777952]
[1727973748719,4.30348,2323.7,2323.5,0.89185301]
[1727973748914,4.30348,2323.7,2323.4,0.89185301]
[1727973749142,4.30321,2323.9,2323.4,1.29436545]
[1727973749346,4.30321,2323.9,2323.5,0.89185301]
[1727973749347,4.30315,2323.9,2323.5,0.89185301]
[1727973749848,4.3031,2324.0,2323.6,0.55]
[1727973750055,8.60619,2324.0,2323.6,1.44185301]
[1727973750266,3.8029,2324.3,2323.6,1.44185301]
[1727973750267,3.0,2324.1,2323.6,4.85365]
[1727973750570,7.30274,2324.1,2323.6,6.8574275]
[1727973750778,7.30274,2324.1,2323.6,2.5537775]
[1727973750925,3.0,2324.1,2323.6,0.55]
[1727973751128,8.60604,2324.0,2323.5,0.55]
[1727973751326,4.30301,2324.0,2323.5,4.8538]
[1727973751531,4.30269,2324.2,2323.7,0.55]
[1727973751840,4.30269,2324.2,2323.8,0.8185]
[1727973752039,4.30274,2324.1,2323.9,0.55]
[1727973752572,4.30274,2324.1,2323.8,0.55]
[1727973752781,4.30274,2324.1,2323.5,0.89185301]
[1727973752782,0.8141,2324.0,2323.5,0.89185301]
[1727973753074,4.30379,2323.6,2323.3,0.89185301]
[1727973753277,4.30379,2323.6,2323.2,1.68605301]
[1727973753481,4.30379,2323.6,2323.2,0.7942]
[1727973753628,3.0,2323.8,2323.2,1.68605301]
[1727973753968,3.0,2323.8,2323.3,4.30413]
[1727973754175,3.0,2323.8,2323.4,0.5990183]
[1727973754465,7.30344,2323.8,2323.5,0.55]
[1727973754870,4.30338,2323.8,2323.5,0.55]
[1727973755241,4.30362,2323.7,2323.3,0.55]
[1727973755539,7.30314,2323.9,2323.3,1.12638436]
[1727973755743,4.30274,2324.1,2323.6,0.55]
[1727973756074,4.3032,2323.9,2323.6,0.55]
[1727973756227,3.0,2324.0,2323.4,4.30401]
[1727973756228,7.30294,2324.0,2323.5,4.85383]
[1727973756427,3.0,2324.0,2323.7,0.55]
[1727973756627,3.0,2324.0,2323.7,6.629315]
[1727973756868,4.30247,2324.3,2323.8,4.30328]
[1727973757074,5.11482,2324.6,2324.0,4.30291]
[1727973757371,4.30182,2324.6,2324.1,0.55]
[1727973757691,7.31,2325.1,2324.1,0.55]
[1727973757692,8.60314,2324.8,2324.3,0.55]
[1727973757990,0.7748,2325.0,2324.3,0.55]
[1727973757991,4.30175,2324.7,2324.3,1.544246]
[1727973758291,8.60349,2324.7,2324.3,1.544246]
[1727973758904,4.30135,2324.9,2324.3,1.544246]
[1727973759082,7.31,2325.4,2324.6,0.55]
[1727973759083,0.7646,2325.2,2324.6,0.55]
[1727973759285,7.31,2325.4,2324.6,0.55]
[1727973759286,4.30097,2325.1,2324.8,0.819]
[1727973759486,4.30071,2325.2,2324.8,0.819]
[1727973759790,4.30082,2325.2,2324.8,0.819]
[1727973759947,4.3009,2325.1,2324.8,0.819]
[1727973760286,4.30117,2325.0,2324.8,0.819]
[1727973760795,4.30046,2325.4,2324.9,0.55]
[1727973761106,8.60091,2325.4,2324.9,1.117042]
[1727973761246,4.30061,2325.3,2324.9,1.117042]
[1727973761445,8.60093,2325.4,2324.9,1.117042]
[1727973761674,4.30045,2325.4,2324.9,1.117042]
[1727973761886,4.3006,2325.3,2324.9,1.117042]
[1727973762251,4.29906,2326.1,2325.7,0.55]
[1727973762252,4.29912,2326.1,2325.7,0.55]
[1727973762945,4.29838,2326.5,2325.9,4.84928]
[1727973762946,4.29842,2326.5,2325.9,4.84928]
[1727973763142,4.29804,2326.7,2326.2,0.55]
[1727973763374,4.29817,2326.6,2326.2,0.55]
[1727973763589,4.29832,2326.5,2326.2,0.55]
[1727973764185,4.29804,2326.7,2326.1,0.55]
[1727973764385,4.29885,2326.2,2326.1,0.55]
[1727973764680,4.29857,2326.4,2325.7,4.29966]
[1727973764681,4.29905,2326.1,2325.7,0.55]
[1727973764882,0.8258,2326.4,2325.3,0.7715]
[1727973765091,4.29952,2325.9,2325.3,0.7715]
[1727973765315,4.29937,2326.0,2325.3,5.07188]
[1727973765525,4.29933,2326.0,2325.3,0.7715]
[1727973765669,4.29933,2326.0,2325.3,5.07191]
[1727973765875,4.29933,2326.0,2325.3,9.37232]
[1727973766093,4.29933,2326.0,2325.3,5.07191]
[1727973766317,7.29897,2326.2,2325.5,4.30004]
[1727973766477,8.111448,2326.2,2325.6,0.55]
[1727973766673,3.0,2326.1,2325.6,0.55]
[1727973766882,7.29915,2326.1,2325.5,0.55]
[1727973768586,4.29922,2326.0,2325.5,0.55]
[1727973768815,4.29945,2325.9,2325.4,0.55]
[1727973768983,4.82005748,2326.0,2325.3,5.07189]
[1727973769177,0.52081748,2326.0,2325.3,0.7715]
[1727973769377,4.3,2325.6,2325.3,0.7715]
[1727973769687,4.3,2325.6,2325.0,0.6237462]
[1727973769688,4.3,2325.6,2325.0,1.4091462]
[1727973769904,4.3,2325.6,2325.0,5.7100762]
[1727973770078,4.3,2325.6,2325.0,1.4091462]
[1727973770079,4.30025,2325.5,2325.0,1.4091462]
[1727973770276,0.8152,2325.8,2325.0,0.7854]
[1727973770277,4.29978,2325.7,2325.0,0.7854]
[1727973770480,7.29962,2325.8,2325.2,4.30054]
[1727973770719,3.0,2325.6,2325.1,4.30084]
[1727973770890,7.30007,2325.6,2325.1,0.55]
[1727973771072,8.60056,2325.5,2325.1,0.55]
[1727973771273,7.29999,2325.6,2325.1,0.55]
[1727973771479,8.112468,2325.6,2325.1,0.55]
[1727973772390,4.30033,2325.4,2325.1,0.55]
[1727973772737,4.30033,2325.4,2325.0,0.7854]
[1727973772738,4.30072,2325.2,2324.7,5.13316]
[1727973772896,4.30044,2325.4,2324.7,5.13316]
[1727973773226,4.30078,2325.2,2324.7,5.646476]
[1727973773430,4.3003,2325.5,2324.9,4.30113]
[1727973773738,3.0,2325.7,2325.2,0.784]
[1727973774026,4.29971,2325.8,2325.2,0.784]
[1727973774209,4.30004,2325.6,2325.2,0.784]
[1727973774423,4.30016,2325.5,2325.2,0.784]
[1727973774589,4.30004,2325.6,2325.2,0.784]
[1727973774783,4.30015,2325.5,2325.2,0.784]
[1727973774991,4.29947,2325.9,2325.2,5.08467]
[1727973775213,8.029657,2325.8,2325.3,0.55]
[1727973775396,7.29971,2325.8,2325.3,0.55]
[1727973775611,4.29971,2325.8,2325.3,4.85047]
[1727973775825,4.29991,2325.7,2325.3,0.55]
[1727973776000,4.29998,2325.6,2325.3,0.55]
[1727973776300,4.30032,2325.5,2325.2,0.784]
[1727973776502,4.30052,2325.3,2324.8,4.30133]
[1727973776701,4.3009,2325.1,2324.9,0.8036]
[1727973776895,4.30053,2325.3,2324.9,0.8036]
[1727973777097,4.30079,2325.2,2324.9,0.8036]
[1727973777327,3.0,2325.8,2325.0,5.10451]
[1727973777493,3.0,2325.8,2325.3,4.30041]
[1727973777690,3.0,2325.8,2325.2,4.30056]
[1727973778112,4.29949,2325.9,2324.9,0.510507]
[1727973778113,7.29914,2326.1,2325.6,0.55]
[1727973778300,4.29878,2326.3,2325.6,4.84993]
[1727973778638,4.29916,2326.1,2325.6,0.55]
[1727973778949,4.2991,2326.1,2325.6,4.84983]
[1727973779092,4.29934,2326.0,2325.6,0.55]
[1727973779294,4.29943,2325.9,2325.6,0.55]
[1727973780259,4.29959,2325.8,2325.5,0.7697]
[1727973780403,4.29943,2325.9,2325.5,0.7697]
[1727973781493,4.29961,2325.8,2325.5,0.7697]
[1727973781829,1.74875546,2326.0,2325.5,0.7697]
[1727973782047,1.74875546,2326.0,2325.8,4.29959]
[1727973782347,4.29922,2326.0,2325.9,0.8116]
[1727973782507,1.74875546,2326.3,2325.9,5.11092]
[1727973782693,1.74875546,2326.3,2326.0,4.29918]
[1727973782895,1.74875546,2326.2,2325.9,0.8116]
[1727973783447,4.29948,2325.9,2325.6,0.8298]
[1727973783734,4.2996,2325.8,2325.6,0.8298]
[1727973783891,6.06888208,2325.8,2325.6,0.8298]
[1727973784151,1.76928208,2325.8,2325.6,0.8298]
[1727973784468,6.06919208,2325.7,2325.3,7.46]
[1727973784667,4.30009,2325.6,2325.2,0.7849]
[1727973784995,1.76928208,2325.5,2325.2,0.7849]
[1727973785176,1.76928208,2325.6,2325.4,4.30033]
[1727973785684,1.76928208,2325.7,2325.4,4.30033]
[1727973785890,1.76928208,2325.7,2325.5,5.07754]
[1727973786269,1.76928208,2325.7,2325.5,0.7775]
[1727973786464,1.76928208,2325.6,2325.5,0.7775]
[1727973786662,2.21129531,2325.6,2325.5,5.07765]
[1727973786851,2.21129531,2325.6,2325.5,6.565448]
[1727973787513,3.09581344,2326.0,2325.8,8.60569]
[1727973787514,1.68611268,2326.0,2325.8,8.60569]
[1727973787813,3.09581344,2326.7,2326.6,4.84811]
[1727973788110,3.09581344,2326.8,2326.7,4.84793]
[1727973788470,3.09581344,2327.0,2326.7,0.55]
[1727973788672,3.09581344,2327.0,2326.6,4.84802]
[1727973788868,3.09581344,2327.1,2326.7,0.560412]
[1727973789077,3.09581344,2327.2,2326.7,0.560412]
[1727973789417,3.09581344,2327.2,2326.7,4.858202]
[1727973789966,3.09581344,2327.1,2326.6,4.848]
[1727973790167,4.29684,2327.3,2326.7,4.29791]
[1727973790168,3.09581344,2327.0,2326.7,4.29791]
[1727973790374,3.09581344,2326.9,2326.7,4.29791]
[1727973790876,3.1008458,2327.1,2327.0,4.29737]
[1727973791084,3.10104519,2327.2,2326.9,0.7751]
[1727973791379,3.66287411,2327.4,2326.9,0.7751]
[1727973791380,3.10104519,2327.1,2326.9,0.7751]
[1727973791576,3.10104519,2327.2,2326.9,1.337384]
[1727973791776,3.10104519,2327.1,2326.9,1.337384]
[1727973792105,3.10104519,2327.1,2326.9,5.634854]
[1727973793525,2.65916018,2327.0,2326.9,5.634854]
[1727973793674,3.10104519,2327.2,2326.9,5.634854]
[1727973793878,3.10104519,2327.1,2326.9,5.634854]
[1727973794201,3.10104519,2327.2,2326.9,5.07257]
[1727973794373,2.65957135,2327.0,2326.9,5.07257]
[1727973795224,3.10104519,2327.2,2327.1,4.29719]
[1727973795436,3.1022172,2327.4,2327.2,4.847]
[1727973795746,3.1022172,2327.4,2327.3,4.84682]
[1727973796033,3.1022172,2327.6,2327.5,0.55]
[1727973796340,3.1022172,2327.6,2327.5,4.84645]
[1727973796498,3.1022172,2327.6,2327.5,5.83877]
[1727973796708,3.66449407,2327.8,2327.6,4.29621]
[1727973797242,3.66449407,2327.8,2327.5,5.83873]
[1727973797448,7.39800547,2327.7,2327.3,0.7802]
[1727973797628,3.10160379,2327.4,2327.3,0.7802]
[1727973797800,3.66449407,2327.4,2327.1,0.8057]
[1727973798007,3.10134598,2327.3,2327.1,5.10281]
[1727973798201,3.10134598,2327.3,2327.1,6.042814]
[1727973798433,3.10134598,2327.3,2327.1,1.745704]
[1727973799123,3.10134598,2327.3,2327.1,0.8057]
[1727973799432,3.10134598,2327.3,2326.8,4.29761]
[1727973799433,3.10134598,2327.2,2326.8,0.8057]
[1727973799601,3.10134598,2327.1,2326.9,4.29743]
[1727973799800,3.66449407,2327.4,2326.9,4.29743]
[1727973799801,2.65718337,2327.0,2326.9,4.29743]
[1727973800004,8.59306,2327.5,2326.8,5.1034]
[1727973800005,2.65718337,2327.1,2326.8,5.1034]
[1727973800250,2.65718337,2327.0,2326.8,4.2977]
[1727973800806,2.65718337,2327.1,2326.8,4.2977]
[1727973801004,2.65718337,2327.1,2326.8,5.47347]
[1727973801242,2.65718337,2327.2,2326.8,5.47347]
[1727973801442,2.65718337,2327.1,2326.8,4.2977]
[1727973801643,2.65718337,2327.0,2326.8,4.2977]
[1727973802050,2.65718337,2327.1,2326.6,7.46]
[1727973802256,4.29727,2327.1,2326.6,5.12139]
[1727973802737,4.29727,2327.1,2326.7,4.29791]
[1727973802961,4.29727,2327.1,2326.5,0.774]
[1727973802962,1.12515434,2327.1,2326.5,0.774]
[1727973803141,4.29756,2326.9,2326.5,5.07222]
[1727973803341,4.29738,2327.0,2326.5,0.774]
[1727973803555,4.29738,2327.0,2326.5,5.07216]
[1727973803926,4.29738,2327.0,2326.5,0.774]
[1727973804121,4.29787,2326.8,2326.5,0.774]
[1727973804461,4.29787,2326.8,2326.2,12.52838]
[1727973804462,4.29823,2326.6,2326.2,12.52838]
[1727973804632,4.29777,2326.8,2326.4,4.2984]
[1727973805162,3.8023,2327.1,2326.4,4.29846]
[1727973805163,4.29768,2326.9,2326.4,4.29846]
[1727973805365,4.29804,2326.7,2326.3,4.29863]
[1727973805571,4.29804,2326.7,2326.2,0.7697]
[1727973805572,4.29831,2326.5,2326.2,0.7697]
[1727973805722,4.29833,2326.5,2326.2,0.7697]
[1727973806027,4.29849,2326.4,2326.0,8.0953]
[1727973806225,4.29867,2326.3,2325.8,0.7961]
[1727973806619,4.29886,2326.2,2325.8,5.09568]
[1727973806846,4.29911,2326.1,2325.8,0.7961]
[1727973807022,4.29944,2325.9,2325.5,6.041978]
[1727973807225,4.29922,2326.0,2325.6,4.29987]
[1727973807457,4.29887,2326.2,2325.7,4.29977]
[1727973807458,7.2992,2326.1,2325.7,4.29977]
[1727973807663,4.29942,2325.9,2325.5,5.10432]
[1727973807959,0.7693,2326.9,2325.8,4.29957]
[1727973808125,4.29819,2326.6,2326.1,4.29894]
[1727973808860,4.29801,2326.7,2326.1,4.29894]
[1727973809084,4.29801,2326.7,2326.2,4.29883]
[1727973809422,4.29857,2326.4,2325.9,0.8042]
[1727973809661,4.29838,2326.5,2325.9,5.10358]
[1727973809829,4.29882,2326.3,2325.9,0.8042]
[1727973810028,8.06687,2326.9,2325.9,5.613885]
[1727973810029,4.29847,2326.5,2325.9,5.613885]
[1727973810251,4.29849,2326.4,2325.9,5.1035]
[1727973810470,4.29888,2326.2,2325.9,0.8042]
[1727973810984,4.30004,2325.6,2325.2,0.7736]
[1727973811780,4.29973,2325.8,2325.3,4.3004]
[1727973811986,7.29953,2325.9,2325.4,4.30025]
[1727973812279,4.3006,2325.3,2324.9,8.2679]
[1727973812488,4.30079,2325.2,2324.9,0.8079]
[1727973812641,4.3006,2325.3,2324.9,0.8079]
[1727973812842,8.60059,2325.5,2325.0,4.30091]
[1727973813153,4.30011,2325.6,2325.1,4.30088]
[1727973813354,4.30011,2325.6,2325.2,4.30061]
[1727973813695,4.30011,2325.6,2324.9,0.8079]
[1727973813696,4.30044,2325.4,2324.9,5.10906]
[1727973813991,4.30002,2325.6,2324.6,0.8079]
[1727973814145,4.30119,2325.0,2324.6,5.10967]
[1727973814854,4.30091,2325.1,2324.7,4.30161]
[1727973815179,7.31,2325.6,2324.9,4.30113]
[1727973815380,4.30004,2325.6,2325.1,4.3008]
[1727973815581,4.30057,2325.3,2325.0,0.430113]
[1727973815885,4.30083,2325.2,2324.8,4.30142]
[1727973816093,4.30027,2325.5,2324.8,4.30142]
[1727973816244,7.31,2326.7,2324.8,4.30142]
[1727973816245,4.2999,2325.7,2325.3,4.30042]
[1727973816601,4.2999,2325.7,2325.3,0.7547]
[1727973816602,4.29978,2325.7,2325.3,0.7547]
[1727973816748,4.30027,2325.5,2325.0,0.7547]
[1727973816949,4.30027,2325.5,2325.0,1.315283]
[1727973817278,4.30041,2325.4,2325.0,1.315283]
[1727973817583,4.30053,2325.3,2325.0,0.7547]
[1727973817798,4.30035,2325.4,2325.0,0.7547]
[1727973818088,4.30095,2325.1,2324.6,4.30179]
[1727973818243,3.0,2325.2,2324.7,4.30148]
[1727973818446,4.30058,2325.3,2324.8,4.30136]
[1727973818879,8.60122,2325.3,2324.8,4.30136]
[1727973819053,4.30058,2325.3,2324.8,4.30136]
[1727973819257,8.60119,2325.3,2324.8,5.2046619]
[1727973819484,4.30058,2325.3,2324.8,1.79515491]
[1727973819652,4.30058,2325.3,2324.8,0.9033019]
[1727973819653,4.30073,2325.2,2324.8,0.9033019]
[1727973819849,0.8095,2325.6,2325.0,0.7643]
[1727973819850,4.30042,2325.4,2325.0,0.7643]
[1727973820272,4.30026,2325.5,2325.1,4.85087]
[1727973820500,4.30026,2325.5,2325.1,0.55]
[1727973820676,4.30035,2325.4,2325.1,0.55]
[1727973820988,7.30014,2325.6,2325.1,4.85087]
[1727973821172,4.30018,2325.5,2325.1,5.842484]
[1727973821548,4.30018,2325.5,2325.1,1.541614]
[1727973822283,8.12151,2325.9,2325.1,1.541614]
[1727973822284,4.30047,2325.4,2325.1,1.541614]
[1727973822586,4.30017,2325.5,2325.1,1.541614]
[1727973823168,4.30035,2325.4,2325.1,1.541614]
[1727973823484,4.30014,2325.6,2324.7,0.8166]
[1727973823702,4.30133,2324.9,2324.6,0.89185301]
[1727973823851,8.05283,2324.7,2324.6,0.89185301]
[1727973826587,22.333163,2324.7,2324.6,0.89185301]
[1727973826769,24.9966273,2324.7,2324.6,0.89185301]
[1727973826973,25.5466273,2324.7,2324.6,0.05855301]
[1727973827478,7.30181,2324.6,2324.5,1.33777952]
[1727973827694,28.815297,2324.6,2324.5,1.33777952]
[1727973830225,25.638912,2324.6,2324.5,1.33777952]
[1727973830406,14.03592293,2324.6,2324.5,1.33777952]
[1727973830821,14.03592293,2324.6,2324.5,0.87791781]
[1727973831019,8.11308,2324.4,2323.4,4.39535162]
[1727973831223,8.57960623,2324.4,2323.4,4.39535162]
[1727973831396,11.67280853,2324.4,2323.4,4.39535162]
[1727973831740,44.0271573,2324.4,2323.4,4.39535162]
[1727973832105,36.6514403,2324.4,2323.4,4.39535162]
[1727973832526,30.8668823,2324.4,2323.4,4.39535162]
[1727973832831,13.9174813,2324.4,2323.4,5.18685162]
[1727973833208,14.0005823,2324.4,2323.4,5.18685162]
[1727973833408,14.0005823,2324.4,2323.4,9.49085162]
[1727973833409,11.2062823,2324.4,2323.4,9.49085162]
[1727973833732,8.2062823,2324.4,2323.5,4.30384]
[1727973833934,5.11308,2324.4,2323.4,5.18685162]
[1727973834399,5.11308,2324.4,2323.4,9.49087162]
[1727973834600,5.11308,2324.4,2323.4,5.18685162]
[1727973834819,12.052005,2324.4,2323.4,5.18685162]
[1727973835020,11.40763,2324.4,2323.4,5.18685162]
[1727973835800,4.30258,2324.2,2324.1,1.79549183]
[1727973836005,12.902305,2324.2,2324.1,1.79549183]
[1727973836308,7.30274,2324.1,2324.0,1.80024129]
[1727973836531,4.30319,2323.9,2323.7,2.70048914]
[1727973836832,4.30319,2323.9,2323.8,4.02988914]
[1727973837225,4.30257,2324.2,2323.9,0.55]
[1727973837539,4.30257,2324.2,2324.1,2.25023921]
[1727973837742,4.30292,2324.0,2323.9,2.70015992]
[1727973837942,4.30311,2323.9,2323.7,2.70015803]
[1727973838116,4.30311,2323.9,2323.8,2.70030931]
[1727973838314,4.30294,2324.0,2323.8,2.70030931]
[1727973838646,4.30294,2324.0,2323.9,2.70030931]
[1727973838939,4.30311,2323.9,2323.8,2.70030931]
[1727973839142,4.30311,2323.9,2323.8,3.25030931]
[1727973839347,4.30311,2323.9,2323.8,2.70030931]
[1727973839632,4.30311,2323.9,2323.8,3.25030931]
[1727973840347,4.30311,2323.9,2323.8,0.55]
[1727973840856,4.30311,2323.9,2323.7,3.25030931]
[1727973841000,4.30329,2323.8,2323.7,3.25030931]
[1727973841309,4.30329,2323.8,2323.7,0.55]
[1727973841509,4.30329,2323.8,2323.7,3.25027934]
[1727973841744,4.30329,2323.8,2323.7,0.55]
[1727973841900,4.30329,2323.8,2323.7,3.25027934]
[1727973842106,4.30329,2323.8,2323.7,0.55]
[1727973842300,4.30314,2323.9,2323.8,0.55]
[1727973842798,4.30314,2323.9,2323.8,2.80060525]
[1727973842999,4.30314,2323.9,2323.8,2.25060525]
[1727973843348,4.30345,2323.8,2323.7,2.70043557]
[1727973843639,4.30345,2323.8,2323.5,3.92990816]
[1727973843640,4.30366,2323.6,2323.5,2.70043557]
[1727973843851,4.30385,2323.5,2323.4,2.70043557]
[1727973844151,4.30385,2323.5,2323.2,2.70043557]
[1727973844152,4.30422,2323.3,2323.2,2.70043557]
[1727973844442,4.3044,2323.2,2323.1,0.1153636]
[1727973844649,4.3044,2323.2,2323.1,2.81645148]
[1727973844800,4.30422,2323.3,2323.1,0.1153636]
[1727973844997,4.30411,2323.4,2323.2,2.70092311]
[1727973845238,7.3035,2323.7,2323.1,0.1153636]
[1727973845239,4.30422,2323.3,2323.1,0.1153636]
[1727973845446,3.0,2323.4,2323.2,0.8029]
[1727973845602,4.30338,2323.8,2323.3,2.70052042]
[1727973845803,7.30356,2323.7,2323.6,2.25041626]
[1727973845999,7.30356,2323.7,2323.6,2.80041626]
[1727973846639,4.30314,2323.9,2323.7,1.3173]
[1727973846842,4.30286,2324.1,2323.8,1.8002039]
[1727973847041,4.30294,2324.0,2323.9,1.90014528]
[1727973847348,4.30294,2324.0,2323.9,1.8002039]
[1727973847501,4.30294,2324.0,2323.8,2.25025578]
[1727973847502,4.30294,2324.0,2323.8,1.8002039]
[1727973847846,4.30294,2324.0,2323.8,2.80025578]
[1727973847847,4.30311,2323.9,2323.8,2.80025578]
[1727973848093,4.30311,2323.9,2323.8,2.35048459]
[1727973848358,4.30311,2323.9,2323.8,0.55]
[1727973848532,4.30311,2323.9,2323.8,2.35048459]
[1727973848730,4.30301,2324.0,2323.8,2.35048459]
[1727973848937,8.60608,2324.0,2323.9,1.90047137]
[1727973849357,8.60608,2324.0,2323.9,1.35047137]
[1727973850019,3.0,2324.4,2323.9,1.90047137]
[1727973850372,7.30264,2324.2,2324.0,0.90037667]
[1727973850661,4.30274,2324.1,2324.0,0.90037667]
[1727973851063,7.30264,2324.2,2324.0,0.90037667]
[1727973851360,4.3022,2324.4,2324.1,0.90037667]
[1727973851526,4.3022,2324.4,2324.2,1.63681547]
[1727973851724,4.3022,2324.4,2324.2,0.90037667]
[1727973851950,8.0805,2325.1,2324.3,0.55]